bitfinex/quotes_ETHUSD_20240917
["timestamp","ask_amount","ask_price","bid_price","bid_amount"]
[1726589088769,4.2462663,2390.4,2390.2,4.18366]
[1726589088970,2.4976,2390.4,2390.2,4.18365]
[1726589089138,4.2462663,2390.4,2390.2,4.18365]
[1726589089549,4.2462663,2390.4,2390.0,4.18395]
[1726589089550,5.30788058,2390.4,2390.0,4.18395]
[1726589089749,1.7486663,2390.3,2390.1,4.18391]
[1726589090957,1.7486663,2390.3,2390.0,4.18395]
[1726589091269,1.7486663,2390.3,2390.1,4.18384]
[1726589092055,1.7486663,2390.2,2390.1,4.18384]
[1726589092251,1.7486663,2390.2,2390.0,4.18408]
[1726589092579,2.91647801,2390.2,2389.8,4.18434]
[1726589092882,1.7486663,2390.1,2389.9,4.18417]
[1726589095030,1.7486663,2390.1,2390.0,4.1841]
[1726589096354,1.7486663,2390.2,2390.1,4.18392]
[1726589096667,4.68441648,2390.4,2390.1,4.18392]
[1726589096668,2.18681648,2390.3,2390.2,4.18375]
[1726589096979,2.4976,2390.4,2390.2,4.18375]
[1726589096980,4.68441648,2390.4,2390.2,4.18375]
[1726589097140,4.68441648,2390.4,2390.3,4.18357]
[1726589097341,4.24740789,2390.4,2390.3,4.18357]
[1726589097541,4.68441648,2390.4,2390.3,4.18357]
[1726589097941,2.4976,2390.4,2390.3,4.18357]
[1726589098140,2.4976,2390.4,2390.2,4.18375]
[1726589098447,1.74992129,2390.3,2390.2,4.18375]
[1726589100541,1.74992129,2390.3,2390.1,4.18385]
[1726589100542,1.74992129,2390.3,2390.1,8.3677]
[1726589100885,1.74992129,2390.3,2390.2,4.18375]
[1726589101102,1.74992129,2390.3,2390.2,8.45117273]
[1726589101391,1.74992129,2390.7,2390.6,4.18305]
[1726589101886,2.18639653,2390.7,2390.6,8.3661]
[1726589102058,11.57886008,2390.9,2390.8,4.1827]
[1726589102252,4.59569653,2390.9,2390.8,4.1827]
[1726589102556,1.74939144,2391.0,2390.8,4.1827]
[1726589102879,1.74939144,2391.0,2390.7,4.18287]
[1726589102880,1.74939144,2390.9,2390.7,4.18277]
[1726589103190,1.74939144,2390.9,2390.7,8.36555]
[1726589103357,1.74939144,2390.9,2390.7,4.18277]
[1726589103898,1.74939144,2390.9,2390.3,2.0]
[1726589104045,1.74939144,2391.1,2391.0,4.18235]
[1726589104246,1.74939144,2391.1,2391.0,8.3647]
[1726589104549,4.08951714,2391.3,2391.1,4.18217]
[1726589104745,1.78911714,2391.3,2391.2,8.364]
[1726589104946,0.0397257,2391.3,2391.2,12.546]
[1726589105147,0.0397257,2391.3,2391.2,20.03265262]
[1726589105994,0.0397257,2391.3,2391.2,24.21465262]
[1726589106212,0.0397257,2391.3,2391.2,20.03265262]
[1726589106983,0.0397257,2391.3,2391.2,24.21465262]
[1726589107563,0.0397257,2391.3,2391.2,20.03265262]
[1726589109285,0.0397257,2391.3,2391.2,24.21465262]
[1726589109491,0.0397257,2391.3,2391.2,20.03265262]
[1726589109852,0.0397257,2391.3,2391.2,8.364]
[1726589110154,0.0397257,2391.3,2391.1,4.18216]
[1726589110359,0.0397257,2391.3,2391.1,4.18204]
[1726589110880,0.0397257,2391.3,2391.1,8.36412]
[1726589111105,0.0397257,2391.3,2391.2,4.182]
[1726589112731,0.0397257,2391.3,2391.1,4.18204]
[1726589113031,2.3132,2391.2,2391.1,4.18204]
[1726589113901,0.0397257,2391.3,2391.2,4.182]
[1726589114083,0.0397257,2391.3,2391.2,8.364]
[1726589115983,0.0397257,2391.3,2391.2,11.364]
[1726589117025,0.0397257,2391.3,2391.2,4.182]
[1726589117399,0.0397257,2391.3,2391.2,8.364]
[1726589123712,2.4473257,2391.3,2391.2,4.182]
[1726589124716,2.69205827,2391.3,2391.1,4.18205]
[1726589125255,2.69205827,2391.3,2391.0,4.18224]
[1726589125417,2.69205827,2391.3,2391.1,4.18217]
[1726589125619,2.69205827,2391.3,2391.1,4.18209]
[1726589125909,2.69205827,2391.3,2391.2,4.182]
[1726589125910,2.4473257,2391.3,2391.2,4.182]
[1726589126938,2.4473257,2391.3,2391.2,8.364]
[1726589127542,2.4473257,2391.3,2391.2,4.182]
[1726589130949,2.4473257,2391.3,2391.2,8.364]
[1726589131158,0.0397257,2391.3,2391.2,8.364]
[1726589131949,0.0397257,2391.3,2391.2,15.62975963]
[1726589132140,0.0397257,2391.3,2391.2,11.44775963]
[1726589132445,0.0397257,2391.3,2391.2,15.62975963]
[1726589132810,0.0397257,2391.3,2391.2,18.17975963]
[1726589133150,0.0397257,2391.3,2391.2,17.62975963]
[1726589134049,0.0397257,2391.3,2391.2,26.29841225]
[1726589134567,0.0397257,2391.3,2391.2,17.62975963]
[1726589138552,0.0397257,2391.3,2391.2,11.44775963]
[1726589138765,2.3032257,2391.3,2391.2,8.44775963]
[1726589139070,2.53354827,2391.3,2391.2,0.08375963]
[1726589139424,2.53354827,2391.3,2391.0,4.1822]
[1726589139721,2.53354827,2391.3,2391.1,0.08288637]
[1726589139974,2.53354827,2391.3,2390.4,2.0]
[1726589140259,2.2563,2391.0,2390.7,4.18279]
[1726589140466,6.43892,2390.9,2390.3,4.18345]
[1726589140621,6.43892,2390.9,2389.8,5.93665262]
[1726589140622,2.2563,2390.8,2389.8,5.93665262]
[1726589140821,2.2563,2390.8,2390.6,4.1829]
[1726589141042,2.2563,2390.8,2390.7,4.18287]
[1726589141358,2.2563,2390.8,2390.7,0.083007]
[1726589141535,2.2563,2390.8,2390.5,4.18305]
[1726589141537,2.2563,2390.8,2390.6,4.18288]
[1726589141738,2.2563,2390.8,2390.7,0.083007]
[1726589142034,2.48193,2390.8,2390.7,4.265877]
[1726589142253,2.2563,2390.8,2390.7,4.265877]
[1726589142451,0.64702009,2391.2,2391.0,4.18223]
[1726589142621,0.64702009,2391.2,2391.1,8.36434]
[1726589142822,0.0397257,2391.3,2391.2,4.182]
[1726589143058,2.3113257,2391.3,2391.2,4.182]
[1726589143276,2.3113257,2391.3,2391.2,4.26485622]
[1726589143635,0.0397257,2391.3,2391.2,8.44685622]
[1726589145023,0.0397257,2391.3,2391.2,0.08285622]
[1726589145538,2.2917257,2391.3,2391.2,0.08285622]
[1726589145734,3.15676754,2391.3,2391.0,4.18234]
[1726589145939,3.15676754,2391.3,2391.2,0.08285622]
[1726589146776,3.15676754,2391.3,2391.0,4.18234]
[1726589147153,3.15676754,2391.3,2391.2,0.08285622]
[1726589147470,3.15676754,2391.3,2391.1,0.08288637]
[1726589147674,0.31567675,2391.2,2390.9,4.18252]
[1726589147964,0.31567675,2391.2,2391.0,4.18234]
[1726589148173,0.31567675,2391.2,2391.1,4.18217]
[1726589148334,2.2917257,2391.3,2391.1,4.18208]
[1726589148743,2.2917257,2391.3,2390.9,8.36475]
[1726589149054,2.2917257,2391.3,2391.0,4.18232]
[1726589149250,3.15684829,2391.3,2391.0,4.18232]
[1726589150946,3.15684829,2391.3,2391.1,4.18216]
[1726589151147,3.15684829,2391.3,2391.0,4.18233]
[1726589152396,3.15684829,2391.3,2391.1,4.18209]
[1726589153071,7.33876829,2391.3,2390.8,4.18268]
[1726589153256,6.46175,2391.1,2390.6,4.18294]
[1726589153453,2.2795,2391.0,2390.7,4.18275]
[1726589153977,2.2795,2391.0,2390.8,0.08344067]
[1726589154184,2.2795,2391.0,2390.2,6.18364]
[1726589154346,2.2795,2391.0,2390.9,0.08341052]
[1726589154347,3.21698544,2391.0,2390.9,0.08341052]
[1726589154541,3.21698544,2391.0,2390.6,4.18292]
[1726589154781,1.74378854,2390.9,2390.6,4.18292]
[1726589155079,4.96077398,2391.0,2390.6,4.18292]
[1726589155283,4.96077398,2391.0,2390.7,4.18279]
[1726589155488,1.13221916,2390.9,2390.7,4.18279]
[1726589156389,1.13221916,2390.9,2390.8,0.08344067]
[1726589156686,1.13221916,2390.9,2390.7,4.18279]
[1726589156985,2.8760077,2390.9,2390.8,0.08344067]
[1726589157195,2.4275,2390.8,2390.5,4.18308]
[1726589157479,2.4275,2390.8,2390.3,4.18355]
[1726589157480,2.4275,2390.6,2390.3,4.18355]
[1726589158054,2.4275,2390.6,2390.2,4.18374]
[1726589158580,2.4275,2390.6,2390.3,4.18353]
[1726589159787,3.73387579,2390.6,2390.3,4.18353]
[1726589159993,3.73387579,2390.6,2390.4,4.18336]
[1726589160296,3.73387579,2390.6,2390.5,4.18322]
[1726589160581,1.13221916,2390.9,2390.6,8.36599]
[1726589160582,3.59727579,2390.9,2390.6,8.36599]
[1726589160785,5.22578363,2390.9,2390.6,4.18294]
[1726589160985,1.30637579,2390.8,2390.6,4.18294]
[1726589161184,1.30637579,2390.8,2390.5,4.18312]
[1726589161488,2.4716,2390.6,2390.3,4.18356]
[1726589161643,2.4716,2390.6,2390.4,4.18334]
[1726589161644,4.15577337,2390.6,2390.4,4.18334]
[1726589162973,4.15577337,2390.6,2390.3,4.18357]
[1726589163282,4.15577337,2390.6,2390.2,4.18361]
[1726589163599,4.15577337,2390.6,2390.3,4.18348]
[1726589164562,4.15577337,2390.6,2390.2,4.18373]
[1726589164857,4.15577337,2390.6,2390.1,4.18389]
[1726589164858,1.00824619,2390.5,2390.3,4.18356]
[1726589165445,1.00824619,2390.5,2390.2,4.18372]
[1726589165769,1.00824619,2390.5,2390.3,4.18357]
[1726589167801,1.00824619,2390.5,2390.2,4.18373]
[1726589167984,1.00824619,2390.5,2390.1,4.18377]
[1726589167985,1.00824619,2390.5,2390.3,4.18356]
[1726589168351,1.00824619,2390.5,2390.2,4.18372]
[1726589168551,1.00824619,2390.5,2390.1,4.18377]
[1726589168552,0.51640196,2390.4,2390.1,4.18377]
[1726589168793,2.3464,2390.3,2390.0,4.18392]
[1726589169095,2.3464,2390.3,2390.2,4.18375]
[1726589169467,2.3464,2390.3,2390.1,8.36764]
[1726589169794,2.3464,2390.3,2390.1,4.1838]
[1726589169949,2.71167758,2390.3,2390.0,4.18406]
[1726589170151,2.71167758,2390.3,2389.9,4.18418]
[1726589170480,2.4251,2390.2,2389.5,7.18496]
[1726589170679,2.4251,2390.2,2389.8,4.1843]
[1726589170900,2.4251,2390.2,2389.3,2.0]
[1726589170901,7.43695334,2390.2,2389.7,4.18462]
[1726589171200,4.55950913,2390.2,2390.0,4.18401]
[1726589171360,2.4251,2390.2,2390.1,0.07875215]
[1726589171551,2.4251,2390.2,2389.7,4.18447]
[1726589171751,3.73147579,2390.2,2389.8,0.0788427]
[1726589171951,3.73147579,2390.2,2389.7,4.18447]
[1726589172147,3.73147579,2390.2,2389.8,0.0788427]
[1726589172352,3.42752819,2390.2,2389.8,4.18443]
[1726589172602,4.73390398,2390.2,2389.9,0.07881251]
[1726589173098,3.42752819,2390.2,2389.9,0.07881251]
[1726589174281,3.42752819,2390.2,2389.9,4.26294251]
[1726589174856,2.4251,2390.2,2389.9,4.26294251]
[1726589175056,2.4251,2390.2,2390.0,4.18402]
[1726589175255,2.4251,2390.2,2390.1,0.07875215]
[1726589175869,2.4251,2390.2,2389.9,4.18413]
[1726589176069,2.4251,2390.2,2390.1,0.07875215]
[1726589176270,3.7846507,2390.2,2390.0,0.07878233]
[1726589176502,3.7846507,2390.2,2389.8,4.18443]
[1726589176674,7.9684007,2390.2,2390.1,0.07875215]
[1726589176855,7.9684007,2390.2,2389.8,4.18443]
[1726589177056,7.9684007,2390.2,2389.9,0.07881251]
[1726589177353,1.34583665,2390.1,2389.9,0.07881251]
[1726589177556,7.9684007,2390.2,2389.9,0.07881251]
[1726589177557,7.9684807,2390.2,2389.9,0.07881251]
[1726589178374,3.7846507,2390.2,2389.9,0.07881251]
[1726589178697,3.7846507,2390.2,2390.0,4.18409]
[1726589178698,2.4251,2390.2,2390.0,4.18409]
[1726589179197,2.4251,2390.2,2390.1,0.07911267]
[1726589180599,4.18341,2390.4,2390.3,4.18357]
[1726589180600,2.3094,2390.4,2390.3,4.18357]
[1726589180821,9.16378854,2390.7,2390.3,4.18357]
[1726589180822,2.4294,2390.6,2390.3,4.18357]
[1726589181093,2.4294,2390.6,2390.3,4.26274116]
[1726589181451,2.4294,2390.6,2390.3,0.07917116]
[1726589181653,2.4294,2390.6,2390.1,4.18379]
[1726589181654,9.45278237,2390.6,2390.1,4.18379]
[1726589181867,6.61275,2390.5,2390.2,0.07911527]
[1726589182056,7.91912579,2390.5,2390.2,0.07911527]
[1726589182251,7.91912579,2390.5,2390.0,4.18401]
[1726589182552,9.85078314,2390.5,2390.3,0.07901545]
[1726589182761,9.85078314,2390.5,2390.0,4.18401]
[1726589183195,9.85078314,2390.5,2390.1,0.07907579]
[1726589184166,2.3647,2390.3,2390.1,0.07907579]
[1726589184382,2.3647,2390.3,2389.9,4.18417]
[1726589184383,3.67107579,2390.3,2389.9,4.18417]
[1726589184606,0.95982843,2390.2,2389.8,4.18441]
[1726589184899,0.95982843,2390.2,2389.9,0.07916483]
[1726589185064,0.95982843,2390.2,2389.9,4.26343483]
[1726589185598,0.95982843,2390.2,2389.9,0.07916483]
[1726589186303,0.95982843,2390.2,2389.9,4.26327483]
[1726589186523,3.67107579,2390.3,2389.9,4.26327483]
[1726589187000,3.67107579,2390.3,2390.0,4.18401]
[1726589187201,1.30637579,2390.3,2390.2,4.18375]
[1726589187396,2.3647,2390.6,2390.4,4.18322]
[1726589187640,2.3647,2390.6,2390.5,0.07671601]
[1726589187641,3.67107579,2390.6,2390.5,0.07671601]
[1726589188348,2.3647,2390.6,2390.5,0.07671601]
[1726589188706,2.3647,2390.6,2390.5,4.25993601]
[1726589188902,2.3647,2390.6,2390.5,4.18322]
[1726589189152,2.3647,2390.6,2390.5,4.25984177]
[1726589189749,2.3647,2390.6,2390.5,0.07662177]
[1726589190240,4.21256222,2390.6,2390.5,0.07662177]
[1726589190458,3.67558502,2390.6,2390.3,4.18346]
[1726589190748,3.67557522,2390.6,2390.4,0.07635284]
[1726589190900,1.31087522,2390.5,2390.4,0.07635284]
[1726589191097,1.31087522,2390.5,2390.2,4.18359]
[1726589191334,1.31089015,2390.4,2390.2,4.18359]
[1726589191543,1.31089015,2390.4,2390.2,8.36724]
[1726589192603,1.31089015,2390.4,2390.2,4.18359]
[1726589193100,1.31089015,2390.4,2390.3,4.18357]
[1726589193547,1.31089015,2390.5,2390.3,4.18357]
[1726589193844,1.31089015,2390.4,2390.3,4.18357]
[1726589194041,1.31089015,2390.5,2390.4,8.3668]
[1726589194339,1.31089015,2390.5,2390.1,8.12048262]
[1726589194340,1.31089015,2390.6,2390.5,8.36644]
[1726589194927,1.31089015,2390.6,2390.5,4.18322]
[1726589195606,1.31089015,2390.7,2390.6,4.18305]
[1726589196016,1.31089015,2390.8,2390.6,4.18305]
[1726589196551,1.31089015,2390.8,2390.7,4.18287]
[1726589196716,1.31089015,2390.8,2390.6,4.18293]
[1726589197491,1.31089015,2390.7,2390.6,4.18293]
[1726589197744,1.31089015,2390.7,2390.6,4.18305]
[1726589198112,1.31089015,2390.8,2390.7,4.18287]
[1726589198302,4.06428854,2390.9,2390.7,4.18287]
[1726589198505,4.06428854,2390.9,2390.4,4.18325]
[1726589198506,1.31392741,2390.8,2390.6,4.18304]
[1726589198719,1.31395922,2390.7,2390.6,4.18304]
[1726589200619,1.74378854,2390.7,2390.6,4.18304]
[1726589201682,1.31389067,2390.7,2390.6,4.25705243]
[1726589201852,1.31389295,2390.7,2390.6,0.07401243]
[1726589202061,1.31389295,2390.7,2390.6,4.25706243]
[1726589202353,1.31404944,2390.7,2390.6,4.25706243]
[1726589202580,1.74378854,2390.7,2390.6,4.25706243]
[1726589202739,1.74378854,2390.7,2390.6,0.07401243]
[1726589203349,2.18320744,2390.7,2390.6,0.07401243]
[1726589203549,1.75226201,2390.7,2390.6,0.07401243]
[1726589203764,2.18320744,2390.7,2390.4,4.18336]
[1726589203972,2.18320744,2390.8,2390.6,0.07393053]
[1726589204275,2.18320744,2390.8,2390.7,0.07390037]
[1726589204582,2.3205,2390.9,2390.5,4.1832]
[1726589204768,1.75219847,2390.6,2390.5,4.1832]
[1726589208440,1.75219847,2390.7,2390.5,4.1832]
[1726589208646,1.31349259,2390.6,2390.5,4.1832]
[1726589208953,1.31342585,2390.6,2390.5,4.1832]
[1726589209970,1.31342585,2390.7,2390.6,4.18305]
[1726589211840,1.31342585,2390.7,2390.5,4.18318]
[1726589212085,1.31342585,2390.7,2390.5,8.36627]
[1726589212294,1.31342585,2390.7,2390.6,4.18305]
[1726589212457,1.31342585,2390.8,2390.7,4.18287]
[1726589212660,1.75219847,2390.8,2390.3,4.18356]
[1726589212848,1.31285265,2390.7,2390.6,4.18288]
[1726589213851,1.75219847,2390.8,2390.7,4.18287]
[1726589214050,1.31286836,2390.8,2390.7,4.18287]
[1726589214554,1.31286836,2390.8,2390.6,4.18301]
[1726589214891,1.31286836,2390.8,2390.7,0.07384172]
[1726589215063,2.07022248,2390.8,2390.7,0.07384172]
[1726589215271,2.07022248,2390.8,2390.5,8.36633]
[1726589215272,0.75735412,2390.8,2390.5,8.36633]
[1726589215464,1.31168237,2390.7,2390.6,0.07387188]
[1726589215794,1.31168237,2390.7,2390.6,4.25692188]
[1726589216702,1.31168237,2390.7,2390.6,0.07387188]
[1726589216995,0.83278281,2390.7,2390.6,0.07387188]
[1726589217207,13.30882128,2390.7,2390.6,0.07387188]
[1726589217407,10.72384,2390.7,2390.6,0.07387188]
[1726589217694,6.54097,2390.7,2390.2,4.18363]
[1726589217862,1.31195336,2390.4,2390.3,4.18352]
[1726589218063,1.31195336,2390.5,2390.4,4.1834]
[1726589218252,1.31195336,2390.5,2390.4,0.07143715]
[1726589219254,1.74927115,2390.6,2390.4,0.07143715]
[1726589219503,4.54468894,2390.7,2390.4,0.07143715]
[1726589219504,1.74927115,2390.5,2390.4,0.07143715]
[1726589219861,1.74927115,2390.6,2390.4,0.07143715]
[1726589220162,1.74927115,2390.5,2390.4,0.07143715]
[1726589220490,2.3788783,2390.5,2390.4,0.07143715]
[1726589220694,4.73894496,2390.5,2390.4,0.07143715]
[1726589220899,4.73894496,2390.5,2390.1,8.36767]
[1726589220900,5.17640752,2390.5,2390.1,8.36766]
[1726589221054,1.31350233,2390.3,2390.1,8.36766]
[1726589221651,1.31350233,2390.3,2390.2,4.18375]
[1726589222698,1.31350233,2390.4,2390.3,4.18357]
[1726589223012,1.31350233,2390.4,2389.8,4.1843]
[1726589223013,4.70120073,2390.4,2389.8,4.1843]
[1726589223304,3.67170647,2390.1,2389.8,4.1843]
[1726589223467,1.31360647,2390.0,2389.9,4.18417]
[1726589224097,1.31360647,2390.0,2389.9,8.36844]
[1726589224308,1.31360647,2390.1,2390.0,4.1841]
[1726589225179,1.31360647,2390.1,2390.0,8.3682]
[1726589225593,1.31360647,2390.3,2390.1,4.18392]
[1726589225766,1.31360647,2390.3,2390.2,8.3675]
[1726589227092,4.19277529,2390.4,2390.2,4.18375]
[1726589227271,1.75147529,2390.3,2390.2,4.18375]
[1726589227633,4.19277529,2390.4,2390.1,8.36776]
[1726589227935,4.19277529,2390.4,2390.1,4.18384]
[1726589227936,1.31437114,2390.2,2390.1,4.18384]
[1726589228134,1.31437114,2390.3,2390.2,4.18375]
[1726589228739,1.31437114,2390.3,2390.2,8.3675]
[1726589228911,1.75147529,2390.5,2390.0,6.93677792]
[1726589229232,1.31451751,2390.6,2390.5,8.36644]
[1726589229432,1.75147529,2390.7,2390.6,4.18305]
[1726589229741,1.75147529,2390.7,2390.5,4.18322]
[1726589229893,1.75147529,2390.6,2390.4,4.18337]
[1726589230092,1.31435117,2390.5,2390.4,4.18337]
[1726589230323,1.75147529,2390.6,2390.4,4.18337]
[1726589230645,1.31411162,2390.5,2390.4,4.18337]
[1726589230793,1.31405391,2390.5,2390.4,4.18337]
[1726589230996,1.31405391,2390.6,2390.5,4.18322]
[1726589231210,1.75147529,2390.6,2390.5,4.18322]
[1726589231417,1.75147529,2390.6,2390.5,4.25288441]
[1726589231698,1.75147529,2390.7,2390.5,4.25288441]
[1726589232007,1.75147529,2390.6,2390.5,0.06966441]
[1726589232341,4.48506252,2390.6,2390.5,0.06966441]
[1726589232892,4.48506252,2390.6,2390.4,4.18336]
[1726589233198,1.75263554,2390.5,2390.4,4.18336]
[1726589233540,2.19118938,2390.5,2390.4,4.18336]
[1726589233935,2.19118938,2390.5,2390.3,8.36693]
[1726589234109,1.75301507,2390.4,2390.3,4.18346]
[1726589234502,1.75301507,2390.4,2390.3,8.36703]
[1726589234905,1.75301507,2390.4,2390.3,4.18346]
[1726589235834,1.75301507,2390.4,2390.3,8.36703]
[1726589236047,2.19118938,2390.5,2390.3,8.36703]
[1726589236048,1.75343665,2390.5,2390.4,22.2836]
[1726589236258,3.66340514,2391.3,2390.9,2.0]
[1726589236259,0.0397257,2391.3,2390.9,2.0]
[1726589236403,4.57718938,2391.8,2391.2,6.93677792]
[1726589236602,4.57718938,2391.8,2391.3,3.0]
[1726589237312,2.386,2391.8,2391.2,3.93677792]
[1726589238051,2.23091508,2392.0,2391.7,3.93677792]
[1726589238345,0.0397257,2392.0,2391.7,3.93677792]
[1726589239101,0.0397257,2392.0,2391.8,0.08360418]
[1726589239302,0.0397257,2392.0,2391.8,3.0]
[1726589239497,0.0397257,2392.0,2391.9,8.36154]
[1726589239926,0.0397257,2392.0,2391.9,8.43026923]
[1726589240269,0.0397257,2392.0,2391.9,8.51387333]
[1726589240748,0.0397257,2392.0,2391.9,18.54781715]
[1726589240953,0.0397257,2392.0,2391.9,21.54781715]
[1726589241403,0.0397257,2392.0,2391.9,22.09781715]
[1726589241841,0.0397257,2392.0,2391.9,26.27858715]
[1726589242200,0.0397257,2392.0,2391.9,22.09781715]
[1726589242883,0.0397257,2392.0,2391.9,21.54781715]
[1726589244260,0.0397257,2392.0,2391.9,18.16103923]
[1726589244573,0.0397257,2392.0,2391.9,22.09781715]
[1726589245879,0.0397257,2392.0,2391.9,17.91704715]
[1726589246054,0.0397257,2392.0,2391.9,22.09781715]
[1726589249568,0.0397257,2392.0,2391.9,17.91704715]
[1726589249762,0.0397257,2392.0,2391.9,11.43026923]
[1726589249964,0.0397257,2392.0,2391.9,4.24949923]
[1726589251149,0.0397257,2392.0,2391.9,3.06872923]
[1726589251389,2.3556257,2392.0,2391.9,3.06872923]
[1726589251696,0.0397257,2392.0,2391.9,15.36704715]
[1726589254254,0.0397257,2392.0,2391.9,7.24949923]
[1726589254472,0.0397257,2392.0,2391.9,3.06872923]
[1726589254696,0.0397257,2392.0,2391.9,0.06872923]
[1726589254697,2.3556257,2392.0,2391.9,0.06872923]
[1726589255399,0.0397257,2392.0,2391.9,8.43026923]
[1726589255898,0.0397257,2392.0,2391.9,15.45065328]
[1726589256094,0.0397257,2392.0,2391.9,11.43026923]
[1726589256259,0.0397257,2392.0,2391.9,7.24949923]
[1726589256671,0.0397257,2392.0,2391.9,11.43026923]
[1726589256860,0.0397257,2392.0,2391.9,7.24949923]
[1726589257408,0.0397257,2392.0,2391.9,11.43026923]
[1726589258199,0.0397257,2392.0,2391.9,7.24949923]
[1726589258658,0.0397257,2392.0,2391.9,11.43026923]
[1726589258859,0.0397257,2392.0,2391.9,7.24949923]
[1726589259990,0.0397257,2392.0,2391.9,15.36704715]
[1726589260195,0.0397257,2392.0,2391.9,15.45064801]
[1726589260698,0.0397257,2392.0,2391.9,15.91704715]
[1726589261294,0.0397257,2392.0,2391.9,11.98026923]
[1726589261504,0.0397257,2392.0,2391.9,15.91704715]
[1726589263108,0.0397257,2392.0,2391.9,11.43026923]
[1726589264975,0.0397257,2392.0,2391.9,15.36704715]
[1726589265514,0.0397257,2392.0,2391.9,19.54781715]
[1726589265696,0.0397257,2392.0,2391.9,15.36704715]
[1726589266093,0.0397257,2392.0,2391.9,19.54781715]
[1726589266411,0.0397257,2392.0,2391.9,20.09781715]
[1726589267826,0.0397257,2392.0,2391.9,20.51671715]
[1726589268126,7.4597257,2392.7,2391.9,20.51671715]
[1726589268127,0.0397257,2392.7,2392.6,20.02542792]
[1726589268410,0.0397257,2392.7,2392.6,20.44432792]
[1726589268615,0.0397257,2392.7,2392.6,20.51182153]
[1726589268771,0.0397257,2392.7,2392.6,20.09292153]
[1726589269886,0.0397257,2392.7,2392.6,15.91337153]
[1726589270291,0.0397257,2392.7,2392.6,16.33217153]
[1726589272022,0.0397257,2392.7,2392.6,15.91337153]
[1726589272510,0.0397257,2392.7,2392.6,20.51172153]
[1726589273154,0.0397257,2392.7,2392.6,16.33217153]
[1726589274151,2.3339,2393.4,2392.9,6.17901]
[1726589274452,2.3339,2393.4,2393.0,3.55]
[1726589274607,2.3339,2393.4,2393.0,3.61692461]
[1726589274804,2.3339,2393.4,2393.0,3.06692461]
[1726589275007,2.3339,2393.4,2393.0,0.06692461]
[1726589276137,2.3339,2393.4,2393.0,3.06692461]
[1726589276343,2.3339,2393.4,2393.0,0.06692461]
[1726589276642,2.3339,2393.4,2393.0,3.06692461]
[1726589276844,2.3339,2393.4,2393.0,7.24574461]
[1726589277354,2.3339,2393.4,2393.0,3.06692461]
[1726589279360,2.3339,2393.4,2393.0,0.06692461]
[1726589280023,3.38272236,2393.4,2393.0,0.06692461]
[1726589280272,2.4919,2393.1,2393.0,0.06692461]
[1726589280602,2.3148257,2393.5,2392.9,2.0]
[1726589280808,2.3148257,2393.5,2393.0,0.06465608]
[1726589281712,2.3055,2393.4,2393.0,0.06465608]
[1726589282009,2.4527,2393.2,2392.7,3.0]
[1726589282160,2.4527,2393.2,2393.1,0.06462597]
[1726589282359,2.4527,2393.2,2392.7,3.0]
[1726589282871,2.4527,2393.2,2392.8,0.06471629]
[1726589283184,2.4527,2393.2,2392.7,3.0]
[1726589283387,2.4527,2393.2,2392.9,0.06468618]
[1726589283556,2.4527,2393.2,2392.8,0.06471629]
[1726589283869,2.4527,2393.2,2393.0,0.06465608]
[1726589284081,2.4527,2393.2,2393.1,0.06462597]
[1726589284284,2.4527,2393.2,2392.7,3.0]
[1726589284503,2.4527,2393.2,2392.8,0.06471629]
[1726589284700,2.4527,2393.2,2392.6,2.0]
[1726589284898,2.4527,2393.2,2392.7,3.55]
[1726589285070,2.4527,2393.2,2392.7,3.6147464]
[1726589286546,2.69797,2393.2,2392.7,0.0647464]
[1726589287763,2.69797,2393.2,2392.6,2.0]
[1726589288242,2.69797,2393.2,2392.7,0.0647464]
[1726589288391,2.3382,2392.9,2392.1,3.0]
[1726589288597,9.987997,2393.1,2392.8,0.06471629]
[1726589288805,2.2982,2393.1,2392.6,5.93677792]
[1726589289048,2.2982,2393.1,2392.6,6.52151045]
[1726589289339,2.2982,2393.1,2392.7,0.0647464]
[1726589289899,2.2982,2393.1,2392.7,4.2440964]
[1726589290100,2.2982,2393.1,2392.8,3.0]
[1726589290339,2.2982,2393.1,2392.9,0.06477178]
[1726589290550,2.2982,2393.1,2393.0,3.0]
[1726589290694,2.3134,2393.4,2393.0,3.0]
[1726589290897,2.3134,2393.4,2393.1,0.06471157]
[1726589291135,2.3134,2393.4,2392.9,9.17901]
[1726589291337,2.3134,2393.4,2393.0,0.06474168]
[1726589292796,2.3134,2393.4,2392.8,7.17919]
[1726589293293,2.3134,2393.4,2392.9,0.06477178]
[1726589294139,4.17835,2393.3,2392.9,0.06477178]
[1726589294443,2.3923,2393.2,2392.4,4.17987]
[1726589294606,2.3923,2393.2,2393.0,0.06474168]
[1726589294810,2.3923,2393.2,2392.4,4.17987]
[1726589295143,2.2729,2393.1,2392.3,8.36002]
[1726589295324,2.2729,2393.1,2392.4,3.06454305]
[1726589295639,2.2729,2393.0,2392.4,3.06454305]
[1726589295811,4.17888,2393.0,2392.4,0.06454305]
[1726589296011,2.3302,2392.9,2392.4,0.06454305]
[1726589296343,2.3302,2392.9,2392.2,2.0]
[1726589296641,4.17929,2392.8,2392.5,0.06451294]
[1726589296842,2.3302,2392.6,2392.1,3.0]
[1726589297244,2.3302,2392.6,2392.2,4.18019]
[1726589297452,2.3302,2392.6,2392.3,7.26354892]
[1726589297735,2.3302,2392.6,2392.4,0.58473253]
[1726589297935,2.3302,2392.6,2392.3,3.08358892]
[1726589298138,2.3302,2392.6,2392.3,3.0]
[1726589298441,2.3302,2392.6,2392.3,3.08358888]
[1726589298855,2.3302,2392.9,2392.3,7.26365888]
[1726589299436,2.3302,2392.7,2392.0,4.18048]
[1726589299685,2.3302,2392.7,2392.1,3.0]
[1726589300281,2.3302,2392.7,2392.2,3.0]
[1726589300872,2.3302,2392.7,2392.2,7.26382343]
[1726589301276,2.3302,2392.7,2392.2,7.18023]
[1726589301643,2.3302,2392.7,2392.4,3.0]
[1726589301982,2.3302,2392.7,2392.4,7.2634576]
[1726589302183,2.3302,2392.7,2392.4,3.0835876]
[1726589302342,2.3302,2392.7,2392.4,7.17978]
[1726589302957,2.3302,2392.7,2392.4,3.0]
[1726589303382,2.3302,2392.7,2392.4,7.26336645]
[1726589303693,2.4348,2393.0,2392.6,7.17946]
[1726589303895,2.4348,2392.9,2392.3,4.18]